fUSD/lending_fUSD_20260208
["ID","MTS","AMOUNT","RATE_DAILY","PERIOD"]
[404784307,1770551438051,-1000.0,0.00026725,2]
[404784309,1770551438061,-4124.5494,0.00026725,2]
[404784311,1770551438071,-2500.0,0.00026725,2]
[404784313,1770551438080,-10008.74984868,0.00026725,2]
[404784315,1770551438090,-20481.20563198,0.00026725,2]
[404784317,1770551438100,-1026.0,0.00026764,7]
[404784319,1770551438110,-278.21,0.00026766,2]
[404784321,1770551438119,-278.21,0.00026814,2]
[404784324,1770551438129,-291.53919257,0.00026822,7]
[404784326,1770551438138,-500.0,0.00026824,2]
[404784328,1770551438147,-242.54798184,0.00026824,2]
[404784330,1770551438158,-500.0,0.00026824,2]
[404784331,1770551438167,-500.0,0.00026824,2]
[404784333,1770551438176,-500.0,0.00026824,2]
[404784335,1770551438185,-500.0,0.00026824,2]
[404784337,1770551438194,-500.0,0.00026824,2]
[404784339,1770551438203,-500.0,0.00026824,2]
[404784340,1770551438213,-500.0,0.00026824,2]
[404784341,1770551438222,-500.0,0.00026824,2]
[404784342,1770551438233,-500.0,0.00026824,2]
[404784343,1770551438242,-612.51022409,0.00026824,2]
[404784344,1770551438252,-500.0,0.00026824,2]
[404784345,1770551438261,-500.0,0.00026824,2]
[404784346,1770551438270,-500.0,0.00026824,2]
[404784347,1770551438280,-500.0,0.00026824,2]
[404784348,1770551438289,-500.0,0.00026824,2]
[404784349,1770551438298,-500.0,0.00026824,2]
[404784350,1770551438308,-500.0,0.00026824,2]
[404784351,1770551438317,-500.0,0.00026824,2]
[404784352,1770551438327,-500.0,0.00026824,2]
[404784353,1770551438337,-500.0,0.00026824,2]
[404784354,1770551438346,-500.0,0.00026824,2]
[404784355,1770551438356,-500.0,0.00026824,2]
[404784356,1770551438365,-500.0,0.00026824,2]
[404784357,1770551438375,-500.0,0.00026824,2]
[404784358,1770551438388,-500.0,0.00026824,2]
[404784359,1770551438398,-500.0,0.00026824,2]
[404784360,1770551438407,-500.0,0.00026824,2]
[404784361,1770551438417,-500.0,0.00026824,2]
[404784362,1770551438429,-12392.59271731,0.00026825,2]
[404784363,1770551438441,-6187.95,0.00026825,2]
[404784371,1770551439808,-722.95000675,0.00026725,2]
[404784372,1770551439862,-277.04999325,0.00026725,2]
[404784373,1770551439872,-1228.33597878,0.00026825,2]
[404784374,1770551439883,-4687.31880001,0.00026825,2]
[404784472,1770551443510,-2576.84337015,0.00026725,2]
[404784473,1770551443520,-30533.15662985,0.00026825,2]
[404784474,1770551443563,-257.53280612,0.00026825,2]
[404784475,1770551443635,-9.58279822,0.00026825,2]
[404784480,1770551445663,-27713.03359029,0.00026825,2]
[404784481,1770551445765,-1601.51421749,0.00026825,2]
[404784482,1770551445776,-266.51249999,0.00026825,2]
[404784629,1770551522827,11542.52057426,0.00035616,30]
[404784630,1770551531903,259.83323667,0.00029397,30]
[404784631,1770551536357,151.0,0.00035616,30]
[404784632,1770551537076,156.587,0.00035616,30]
[404784633,1770551537699,162.380719,0.00035616,30]
[404784634,1770551540608,168.3888056,0.00035616,30]
[404784635,1770551541296,174.61919141,0.00035616,30]
[404784636,1770551542105,181.08010149,0.00035616,30]
[404784637,1770551542628,187.78006525,0.00035616,30]
[404784638,1770551543278,194.72792766,0.00035616,30]
[404784639,1770551543938,201.93286099,0.00035616,30]
[404784640,1770551544573,209.40437684,0.00035616,30]
[404784641,1770551545101,151.0,0.000331,31]
[404784642,1770551545203,217.15233878,0.00035616,30]
[404784643,1770551545841,225.18697532,0.00035616,30]
[404784644,1770551546463,233.51889341,0.00035616,30]
[404784645,1770551546976,151.0,0.000331,31]
[404784646,1770551547092,242.15909246,0.00035616,30]
[404784647,1770551547796,251.11897888,0.00035616,30]
[404784648,1770551548492,260.4103811,0.00035616,30]
[404784649,1770551549126,270.0455652,0.00035616,30]
[404784650,1770551549730,280.03725112,0.00035616,30]
[404784651,1770551550372,290.39862941,0.00035616,30]
[404784652,1770551551026,301.1433787,0.00035616,30]
[404784653,1770551552246,151.0,0.000331,31]
[404784659,1770551603552,151.0,0.0003526,31]
[404784660,1770551609654,151.0,0.0003526,30]
[404784661,1770551612798,151.0,0.0003526,31]
[404784662,1770551645917,151.0,0.0003526,31]
[404784663,1770551678191,151.0,0.00035069,31]
[404784664,1770551731204,151.0,0.00034743,31]
[404784696,1770551831041,151.0,0.00035616,30]
[404784697,1770551831658,156.587,0.00035616,30]
[404784698,1770551832305,162.380719,0.00035616,30]
[404784699,1770551832981,168.3888056,0.00035616,30]
[404784700,1770551833640,174.61919141,0.00035616,30]
[404784701,1770551834315,181.08010149,0.00035616,30]
[404784702,1770551834951,187.78006525,0.00035616,30]
[404784703,1770551835601,194.72792766,0.00035616,30]
[404784704,1770551836240,201.93286099,0.00035616,30]
[404784705,1770551836941,209.40437684,0.00035616,30]
[404784706,1770551837514,217.15233878,0.00035616,30]
[404784707,1770551838160,225.18697532,0.00035616,30]
[404784708,1770551838808,233.51889341,0.00035616,30]
[404784709,1770551839459,242.15909246,0.00035616,30]
[404784710,1770551840088,251.11897888,0.00035616,30]
[404784711,1770551840727,260.4103811,0.00035616,30]
[404784712,1770551843728,280.03725112,0.00035616,30]
[404784713,1770551844366,290.39862941,0.00035616,30]
[404784714,1770551845017,301.1433787,0.00035616,30]
[404784715,1770551854518,151.0,0.000331,31]
[404784739,1770552009912,151.0,0.0003526,31]
[404784740,1770552036113,250.0,0.00035616,30]
[404784741,1770552036706,250.0,0.00035616,30]
[404784742,1770552037324,250.0,0.00035616,30]
[404784743,1770552037980,250.0,0.00035616,30]
[404784744,1770552038621,250.0,0.00035616,30]
[404784745,1770552039225,250.0,0.00035616,30]
[404784746,1770552039849,250.0,0.00035616,30]
[404784747,1770552040490,250.0,0.00035616,30]
[404784748,1770552041107,250.0,0.00035616,30]
[404784749,1770552041719,250.0,0.00035616,30]
[404784750,1770552042354,250.0,0.00035616,30]
[404784751,1770552043162,250.0,0.00035616,30]
[404784752,1770552043624,250.0,0.00035616,30]
[404784753,1770552044231,250.0,0.00035616,30]
[404784754,1770552044856,250.0,0.00035616,30]
[404784755,1770552045512,250.0,0.00035616,30]
[404784756,1770552046144,250.0,0.00035616,30]
[404784757,1770552046748,261.69156896,0.00035616,30]
[404784758,1770552071090,159.8,0.00030137,30]
[404784759,1770552071625,159.8,0.00034972,30]
[404784760,1770552135879,151.0,0.00035616,30]
[404784761,1770552136505,156.587,0.00035616,30]
[404784762,1770552137140,162.380719,0.00035616,30]
[404784763,1770552137770,168.3888056,0.00035616,30]
[404784764,1770552138431,174.61919141,0.00035616,30]
[404784765,1770552139051,181.08010149,0.00035616,30]
[404784766,1770552139688,187.78006525,0.00035616,30]
[404784767,1770552140340,194.72792766,0.00035616,30]
[404784768,1770552140967,201.93286099,0.00035616,30]
[404784769,1770552141608,209.40437684,0.00035616,30]
[404784770,1770552142253,217.15233878,0.00035616,30]
[404784771,1770552142883,225.18697532,0.00035616,30]
[404784772,1770552143532,233.51889341,0.00035616,30]
[404784773,1770552144167,242.15909246,0.00035616,30]
[404784774,1770552144825,251.11897888,0.00035616,30]
[404784775,1770552145478,260.4103811,0.00035616,30]
[404784778,1770552146180,270.0455652,0.00035616,30]
[404784779,1770552146718,280.03725112,0.00035616,30]
[404784780,1770552147327,290.39862941,0.00035616,30]
[404784781,1770552148011,301.1433787,0.00035616,30]
[404784782,1770552148498,968.77,0.000348,90]
[404784783,1770552148730,250.0,0.00035616,30]
[404784784,1770552149365,250.0,0.00035616,30]
[404784785,1770552149971,250.0,0.00035616,30]
[404784786,1770552150647,250.0,0.00035616,30]
[404784787,1770552151280,250.0,0.00035616,30]
[404784788,1770552151913,250.0,0.00035616,30]
[404784789,1770552152533,250.0,0.00035616,30]
[404784795,1770552153174,250.0,0.00035616,30]
[404784796,1770552153802,250.0,0.00035616,30]
[404784797,1770552154425,250.0,0.00035616,30]
[404784798,1770552155148,250.0,0.00035616,30]
[404784799,1770552155747,250.0,0.00035616,30]
[404784800,1770552156056,1000.0,0.000348,90]
[404784818,1770552399093,-168.0,0.00025446,2]
[404784819,1770552399117,-168.0,0.00025594,2]
[404784820,1770552399137,-200.0,0.00025695,2]
[404784821,1770552399157,-216.78,0.00025826,2]
[404784822,1770552399178,-168.0,0.00025829,7]
[404784823,1770552399199,-168.0,0.00025959,2]
[404784824,1770552399220,-168.0,0.00026114,2]
[404784825,1770552399241,-1000.0,0.00026155,2]
[404784826,1770552399262,-162.93,0.00026348,2]
[404784827,1770552399286,-2624.48748988,0.00026459,2]
[404784828,1770552399307,-324.464924,0.00026459,2]
[404784830,1770552436070,151.0,0.00035616,30]
[404784831,1770552437205,156.587,0.00035616,30]
[404784832,1770552437880,162.380719,0.00035616,30]
[404784833,1770552438493,168.3888056,0.00035616,30]
[404784834,1770552439132,174.61919141,0.00035616,30]
[404784835,1770552439844,181.08010149,0.00035616,30]
[404784836,1770552440470,187.78006525,0.00035616,30]
[404784837,1770552441110,194.72792766,0.00035616,30]
[404784838,1770552441744,201.93286099,0.00035616,30]
[404784839,1770552442388,209.40437684,0.00035616,30]
[404784840,1770552443027,217.15233878,0.00035616,30]
[404784841,1770552443679,225.18697532,0.00035616,30]
[404784842,1770552444339,233.51889341,0.00035616,30]
[404784843,1770552445141,242.15909246,0.00035616,30]
[404784844,1770552445583,251.11897888,0.00035616,30]
[404784845,1770552446202,260.4103811,0.00035616,30]
[404784846,1770552446813,270.0455652,0.00035616,30]
[404784847,1770552447455,280.03725112,0.00035616,30]
[404784848,1770552448077,290.39862941,0.00035616,30]
[404784849,1770552448759,301.1433787,0.00035616,30]
[404784850,1770552599123,158.0,0.000356,30]
[404784851,1770552610030,158.0,0.000356,30]
[404784852,1770552610213,151.0,0.000329,31]
[404784853,1770552610533,151.0,0.0003526,31]
[404784854,1770552629151,158.0,0.00023,2]
[404784860,1770552631889,-2361.0,0.00023037,2]
[404784861,1770552631899,-359.0,0.00023037,2]
[404784862,1770552631909,-250.0,0.00025341,2]
[404784863,1770552631918,-168.0,0.00025883,2]
[404784864,1770552631928,-168.0,0.00026211,2]
[404784865,1770552631937,-2296.42655361,0.00026359,2]
[404784866,1770552631945,-166.7450837,0.000264,2]
[404784867,1770552631954,-300.0,0.00026409,2]
[404784868,1770552631963,-3190.82836269,0.0002641,2]
[404784869,1770552631974,-22743.00278334,0.0002641,2]
[404784870,1770552632000,-2886.96369,0.0002641,2]
[404784871,1770552632011,-441.00787928,0.0002641,2]
[404784873,1770552635182,158.0,0.00023,3]
[404784875,1770552638086,-342.86451404,0.0002641,2]
[404784876,1770552638151,-19919.0234628,0.0002641,2]
[404784877,1770552638196,-2278.26122503,0.0002641,2]
[404784878,1770552638208,-655.5,0.0002641,2]
[404785076,1770552640121,-580.52018486,0.00026359,2]
[404785078,1770552640130,-13955.74101382,0.0002641,2]
[404785080,1770552640145,-585.78949553,0.0002641,2]
[404785116,1770552640460,-4625.18798825,0.0002641,2]
[404785118,1770552640472,-1742.1546854,0.0002641,2]
[404785121,1770552640483,-8214.59999992,0.0002641,2]
[404785123,1770552640499,-2095.592,0.0002641,2]
[404785125,1770552640510,-921.6254184,0.0002641,2]
[404785195,1770552646129,-1518.42374258,0.0002641,2]
[404785196,1770552646141,-1911.50976012,0.0002641,2]
[404785197,1770552646188,-3545.6674324,0.0002641,2]
[404785198,1770552646199,-5184.52164539,0.0002641,2]
[404785199,1770552646331,-10989.18429399,0.0002641,2]
[404785200,1770552646343,-967.85802792,0.0002641,2]
[404785218,1770552691767,158.0,0.000356,60]
[404785222,1770552770681,158.37,0.0003561,60]
[404785224,1770553027494,151.0,0.00035616,30]
[404785225,1770553028102,156.587,0.00035616,30]
[404785226,1770553028842,162.380719,0.00035616,30]
[404785227,1770553029502,168.3888056,0.00035616,30]
[404785228,1770553033425,181.08010149,0.00035616,30]
[404785229,1770553033922,187.78006525,0.00035616,30]
[404785230,1770553034546,194.72792766,0.00035616,30]
[404785231,1770553035205,201.93286099,0.00035616,30]
[404785232,1770553035941,209.40437684,0.00035616,30]
[404785233,1770553036558,217.15233878,0.00035616,30]
[404785234,1770553037209,225.18697532,0.00035616,30]
[404785235,1770553037913,233.51889341,0.00035616,30]
[404785236,1770553038539,242.15909246,0.00035616,30]
[404785237,1770553039255,251.11897888,0.00035616,30]
[404785238,1770553039916,260.4103811,0.00035616,30]
[404785239,1770553040553,270.0455652,0.00035616,30]
[404785240,1770553041198,280.03725112,0.00035616,30]
[404785241,1770553041884,290.39862941,0.00035616,30]
[404785242,1770553042548,301.1433787,0.00035616,30]
[404785243,1770553110237,158.0,0.000356,90]
[404785244,1770553150236,166.66,0.00024343,30]
[404785245,1770553150445,166.66,0.00024856,30]
[404785246,1770553150653,166.66,0.00025368,30]
[404785247,1770553150864,166.66,0.00025881,30]
[404785248,1770553151073,166.66,0.00026393,30]
[404785249,1770553151266,166.66,0.00026906,30]
[404785423,1770553330541,151.0,0.00035616,30]
[404785424,1770553331158,156.587,0.00035616,30]
[404785425,1770553331767,162.380719,0.00035616,30]
[404785426,1770553332430,168.3888056,0.00035616,30]
[404785427,1770553340185,174.61919141,0.00035616,30]
[404785428,1770553340840,181.08010149,0.00035616,30]
[404785429,1770553341505,187.78006525,0.00035616,30]
[404785430,1770553342164,194.72792766,0.00035616,30]
[404785431,1770553342796,201.93286099,0.00035616,30]
[404785432,1770553344141,209.40437684,0.00035616,30]
[404785433,1770553344777,217.15233878,0.00035616,30]
[404785434,1770553345484,225.18697532,0.00035616,30]
[404785435,1770553346154,233.51889341,0.00035616,30]
[404785436,1770553346778,242.15909246,0.00035616,30]
[404785437,1770553347403,251.11897888,0.00035616,30]
[404785438,1770553348022,260.4103811,0.00035616,30]
[404785439,1770553348719,270.0455652,0.00035616,30]
[404785440,1770553349333,280.03725112,0.00035616,30]
[404785441,1770553349962,290.39862941,0.00035616,30]
[404785442,1770553350627,301.1433787,0.00035616,30]
[404785444,1770553416701,284.27,0.0003561,30]
[404785445,1770553435481,284.27,0.0003561,30]
[404785450,1770553608876,1469.19785533,0.000162,5]
[404785454,1770553639597,151.0,0.00035616,30]
[404785455,1770553640249,156.587,0.00035616,30]
[404785456,1770553640961,162.380719,0.00035616,30]
[404785457,1770553641592,168.3888056,0.00035616,30]
[404785458,1770553642226,174.61919141,0.00035616,30]
[404785459,1770553643054,181.08010149,0.00035616,30]
[404785460,1770553643676,187.78006525,0.00035616,30]
[404785461,1770553644330,194.72792766,0.00035616,30]
[404785462,1770553644983,201.93286099,0.00035616,30]
[404785463,1770553645594,209.40437684,0.00035616,30]
[404785464,1770553646229,217.15233878,0.00035616,30]
[404785465,1770553646870,225.18697532,0.00035616,30]
[404785466,1770553647478,233.51889341,0.00035616,30]
[404785467,1770553648103,242.15909246,0.00035616,30]
[404785468,1770553648731,251.11897888,0.00035616,30]
[404785469,1770553649358,260.4103811,0.00035616,30]
[404785470,1770553650013,270.0455652,0.00035616,30]
[404785471,1770553650614,280.03725112,0.00035616,30]
[404785472,1770553651296,290.39862941,0.00035616,30]
[404785473,1770553651911,301.1433787,0.00035616,30]
[404785483,1770553714482,4136.44,0.00035616,30]
[404785503,1770553832051,-322.59321388,0.00024534,2]
[404785505,1770553832064,-937.12650612,0.00024534,2]
[404785507,1770553832073,-292.65,0.00024658,2]
[404785509,1770553832083,-173.62178248,0.00024933,2]
[404785510,1770553832106,-112.60821752,0.00024933,2]
[404785511,1770553832115,-286.23,0.00024979,2]
[404785512,1770553832124,-286.23,0.00025025,2]
[404785513,1770553832134,-701.52,0.00025033,2]
[404785514,1770553832143,-286.23,0.00025071,2]
[404785515,1770553832153,-150.0,0.00025111,2]
[404785516,1770553832162,-1327.32,0.00025113,2]
[404785517,1770553832172,-286.23,0.00025116,2]
[404785518,1770553832181,-286.23,0.00025162,2]
[404785519,1770553832190,-286.23,0.00025208,2]
[404785520,1770553832199,-286.23,0.00025254,2]
[404785521,1770553832208,-286.23,0.000253,2]
[404785522,1770553832221,-500.0,0.00025308,2]
[404785523,1770553832230,-286.23,0.00025346,2]
[404785524,1770553832240,-286.23,0.00025392,2]
[404785525,1770553832249,-1026.0,0.00025415,7]
[404785526,1770553832258,-286.23,0.00025438,2]
[404785527,1770553832269,-286.23,0.00025484,2]
[404785528,1770553832278,-1026.0,0.00025493,2]
[404785529,1770553832289,-160.0,0.00025506,2]
[404785530,1770553832298,-160.0,0.00025506,2]
[404785531,1770553832307,-286.23,0.0002553,2]
[404785532,1770553832317,-1026.0,0.00025571,2]
[404785533,1770553832326,-286.23,0.00025576,2]
[404785534,1770553832335,-1018.65071756,0.00025599,2]
[404785535,1770553832346,-181.34928244,0.00025599,2]
[404785536,1770553832355,-212.962157,0.000256,9]
[404785537,1770553832370,-1377.69079332,0.000256,9]
[404785538,1770553832381,-209.34704968,0.000256,9]
[404785539,1770553832390,-53.60333219,0.0002562,2]
[404785540,1770553832401,-246.39666781,0.0002562,2]
[404785541,1770553832410,-13.6358195,0.0002562,2]
[404785542,1770553832421,-286.3641805,0.0002562,2]
[404785543,1770553832430,-214.64622111,0.00025621,2]
[404785544,1770553832442,-785.35377889,0.00025621,2]
[404785545,1770553832451,-286.23,0.00025622,2]
[404785546,1770553832460,-286.23,0.00025667,2]
[404785547,1770553832470,-3700.0,0.000257,9]
[404785548,1770553832479,-286.23,0.00025713,2]
[404785549,1770553832489,-286.23,0.00025759,2]
[404785550,1770553832498,-5600.0,0.000258,9]
[404785551,1770553832507,-286.23,0.00025805,2]
[404785552,1770553832517,-2009.37323447,0.00025897,2]
[404785553,1770553832526,-387.01345656,0.00025897,2]
[404785554,1770553832535,-3691.10864991,0.000259,9]
[404785555,1770553832547,-3334.76220405,0.000259,9]
[404785556,1770553832558,-474.12914604,0.000259,9]
[404785557,1770553832567,-150.0,0.00025957,2]
[404785558,1770553832576,-590.49433064,0.00025957,2]
[404785559,1770553832586,-164.6268,0.00025958,2]
[404785560,1770553832594,-577.90230958,0.00025958,2]
[404785561,1770553838184,-390.62,0.00025957,2]
[404785562,1770553838269,-109.38,0.00025957,2]
[404785563,1770553838279,-196.58311241,0.00025957,2]
[404785564,1770553838290,-303.41688759,0.00025957,2]
[404785565,1770553838301,-500.0,0.00025957,2]
[404785566,1770553838310,-163.13311241,0.00025957,2]
[404785567,1770553840248,-336.86688759,0.00025957,2]
[404785568,1770553840259,-261.25102241,0.00025957,2]
[404785569,1770553840268,-989.31362841,0.00025958,2]
[404785570,1770553840280,-662.03406445,0.00025958,2]
[404785571,1770553840292,-879.37056406,0.00025958,2]
[404785572,1770553840304,-506.02670006,0.00025958,2]
[404785573,1770553840315,-3332.4,0.00025958,2]
[404785574,1770553840325,-2262.0976461,0.00025958,2]
[404785575,1770553840525,-725.91164319,0.00025958,2]
[404785581,1770553844693,-504.11677041,0.00025957,2]
[404785582,1770553844702,-237408.75904175,0.00025958,2]
[404785583,1770553844713,-4275.81551099,0.00025958,2]
[404785584,1770553844724,-345.89286259,0.00025958,2]
[404785585,1770553844735,-529.58639014,0.00025958,2]
[404785586,1770553844750,-709.61,0.00025958,2]
[404785587,1770553844761,-23380.48817919,0.00025958,2]
[404785641,1770553851492,80064.80214467,0.00022,2]
[404785642,1770553851517,19935.19785533,0.00022,2]
[404785667,1770553991092,500.0,0.00035616,30]
[404785668,1770553999981,200.0,0.00021823,2]
[404785669,1770554000413,200.0,0.00021824,2]
[404785677,1770554017165,500.0,0.00035616,30]
[404785680,1770554074117,500.0,0.00035616,30]
[404785716,1770554240984,151.0,0.00035616,30]
[404785717,1770554241588,156.587,0.00035616,30]
[404785718,1770554242225,162.380719,0.00035616,30]
[404785719,1770554242855,168.3888056,0.00035616,30]
[404785720,1770554243579,174.61919141,0.00035616,30]
[404785721,1770554244130,181.08010149,0.00035616,30]
[404785722,1770554244764,187.78006525,0.00035616,30]
[404785723,1770554245396,194.72792766,0.00035616,30]
[404785724,1770554246008,201.93286099,0.00035616,30]
[404785725,1770554246640,209.40437684,0.00035616,30]
[404785726,1770554247396,217.15233878,0.00035616,30]
[404785727,1770554247911,225.18697532,0.00035616,30]
[404785728,1770554248608,233.51889341,0.00035616,30]
[404785729,1770554249237,242.15909246,0.00035616,30]
[404785730,1770554249842,251.11897888,0.00035616,30]
[404785731,1770554250457,260.4103811,0.00035616,30]
[404785732,1770554251076,270.0455652,0.00035616,30]
[404785733,1770554251696,280.03725112,0.00035616,30]
[404785734,1770554252319,290.39862941,0.00035616,30]
[404785735,1770554253069,301.1433787,0.00035616,30]
[404785736,1770554280136,29664.80214467,0.00022,2]
[404785785,1770554532462,151.0,0.00035616,30]
[404785786,1770554533072,156.587,0.00035616,30]
[404785787,1770554533703,162.380719,0.00035616,30]
[404785788,1770554534405,168.3888056,0.00035616,30]
[404785789,1770554535059,174.61919141,0.00035616,30]
[404785790,1770554535742,181.08010149,0.00035616,30]
[404785791,1770554536419,187.78006525,0.00035616,30]
[404785792,1770554537096,194.72792766,0.00035616,30]
[404785793,1770554538188,201.93286099,0.00035616,30]
[404785794,1770554538855,209.40437684,0.00035616,30]
[404785795,1770554539546,217.15233878,0.00035616,30]
[404785796,1770554540222,225.18697532,0.00035616,30]
[404785797,1770554540842,233.51889341,0.00035616,30]
[404785798,1770554541504,242.15909246,0.00035616,30]
[404785799,1770554542671,251.11897888,0.00035616,30]
[404785800,1770554543359,260.4103811,0.00035616,30]
[404785801,1770554544224,270.0455652,0.00035616,30]
[404785802,1770554544765,280.03725112,0.00035616,30]
[404785803,1770554545411,290.39862941,0.00035616,30]
[404785804,1770554546183,301.1433787,0.00035616,30]
[404785830,1770555031296,-200.0,0.00021824,2]
[404785831,1770555031306,-481.30855541,0.0002221,2]
[404785832,1770555031350,-704.890961,0.0002221,2]
[404785833,1770555031512,-1233.16048359,0.0002221,2]
[404785834,1770555031522,-250.0,0.00024006,2]
[404785835,1770555031531,-1200.0,0.00024099,2]
[404785836,1770555031541,-300.0,0.00024099,2]
[404785837,1770555031550,-17840.78760539,0.000241,2]
[404785838,1770555031561,-4879.78571094,0.000241,2]
[404785840,1770555037460,-975.13,0.000241,2]
[404785841,1770555037473,-71059.99999999,0.000241,2]
[404785843,1770555037567,-1150.14294522,0.000241,2]
[404786021,1770555039439,-1066.36987995,0.000241,2]
[404786022,1770555039451,-1069.90000001,0.000241,2]
[404786023,1770555039599,-7346.32052457,0.000241,2]
[404786032,1770555043030,-5426.92117158,0.000241,2]
[404786033,1770555043039,-573.07882842,0.00024324,2]
[404786034,1770555043875,-26.92117158,0.00024324,2]
[404786035,1770555043884,-224.29,0.00024324,2]
[404786036,1770555043893,-191.01,0.00024506,2]
[404786037,1770555043903,-162.93,0.00024951,2]
[404786038,1770555043912,-5000.0,0.00025061,2]
[404786039,1770555043921,-1000.0,0.00025064,2]
[404786040,1770555043930,-200.0,0.00025226,2]
[404786041,1770555043939,-160.0,0.00025455,2]
[404786042,1770555043948,-151.0,0.00025495,2]
[404786043,1770555043957,-151.0,0.00025495,2]
[404786044,1770555043966,-151.0,0.00025495,2]
[404786045,1770555043976,-151.0,0.00025495,2]
[404786046,1770555043989,-151.0,0.00025495,2]
[404786047,1770555043998,-500.0,0.00025495,2]
[404786048,1770555044007,-151.0,0.00025495,2]
[404786049,1770555044016,-500.0,0.00025495,2]
[404786050,1770555044026,-151.0,0.00025495,2]
[404786051,1770555044035,-500.0,0.00025495,2]
[404786052,1770555044044,-151.0,0.00025495,2]
[404786053,1770555044053,-500.0,0.00025495,2]
[404786054,1770555044062,-193.71617672,0.00025495,2]
[404786055,1770555044071,-500.0,0.00025495,2]
[404786056,1770555044080,-500.0,0.00025495,2]
[404786057,1770555044090,-500.0,0.00025495,2]
[404786058,1770555044099,-500.0,0.00025495,2]
[404786059,1770555044108,-500.0,0.00025495,2]
[404786060,1770555044117,-500.0,0.00025495,2]
[404786061,1770555044126,-500.0,0.00025495,2]
[404786062,1770555044135,-500.0,0.00025495,2]
[404786063,1770555044144,-500.0,0.00025495,2]
[404786064,1770555044153,-182.49139356,0.00025495,2]
[404786065,1770555044162,-209.40437684,0.00025495,2]
[404786066,1770555044171,-277.35679052,0.00025495,2]
[404786067,1770555044181,-154.20746345,0.00025509,2]
[404786068,1770555044190,-413.34603145,0.00025509,2]
[404786069,1770555044199,-251.2501136,0.00025509,2]
[404786070,1770555044208,-158.82286789,0.0002552,2]
[404786071,1770555044217,-217.15233878,0.0002555,2]
[404786072,1770555044227,-350.0,0.00025562,2]
[404786073,1770555044236,-429.0,0.00025584,2]
[404786074,1770555044245,-151.0,0.000256,2]
[404786075,1770555044255,-225.18697532,0.00025605,2]
[404786076,1770555044264,-151.0,0.00025609,2]
[404786077,1770555044273,-296.69,0.00025609,2]
[404786078,1770555044283,-151.0,0.00025609,2]
[404786079,1770555044292,-151.0,0.00025609,2]
[404786080,1770555044302,-9540.09773431,0.00025609,2]
[404786081,1770555044312,-500.0,0.00025609,2]
[404786082,1770555044321,-307.06195353,0.00025609,10]
[404786083,1770555044330,-429.0,0.00025639,2]
[404786084,1770555044340,-233.51889341,0.0002566,2]
[404786085,1770555044349,-429.0,0.00025694,2]
[404786086,1770555044360,-582.10884,0.00025709,2]
[404786087,1770555044369,-242.15909246,0.00025715,2]
[404786088,1770555044379,-429.0,0.00025748,2]
[404786089,1770555044388,-251.11897888,0.0002577,2]
[404786090,1770555044397,-429.0,0.00025803,2]
[404786091,1770555044407,-260.4103811,0.00025825,2]
[404786092,1770555044416,-429.0,0.00025858,2]
[404786093,1770555044425,-270.0455652,0.0002588,2]
[404786094,1770555044435,-500.0,0.00025883,2]